bitfinex/quotes_BTCUSD_20230404
["timestamp","ask_amount","ask_price","bid_price","bid_amount"]
[1680629901192,0.027,28164.0,28161.0,0.35357283]
[1680629901408,0.08810234,28165.0,28161.0,0.35357283]
[1680629901631,0.08789234,28165.0,28161.0,0.35357283]
[1680629902557,0.05968,28164.0,28161.0,0.35357283]
[1680629902778,0.01477823,28163.0,28161.0,0.35357283]
[1680629903483,0.01477823,28163.0,28159.0,0.44481579]
[1680629903484,0.10275746,28163.0,28159.0,0.44481579]
[1680629903726,0.24465427,28163.0,28160.0,0.36731657]
[1680629903951,0.08661143,28162.0,28160.0,0.36731657]
[1680629904176,0.051422,28161.0,28160.0,0.36731657]
[1680629904402,0.0085,28161.0,28160.0,0.36731657]
[1680629905896,0.027,28161.0,28160.0,0.36731657]
[1680629906117,0.03571,28161.0,28160.0,0.36731657]
[1680629907359,0.08963675,28161.0,28160.0,0.36731657]
[1680629908475,0.03571,28161.0,28160.0,0.36731657]
[1680629909375,0.03571,28161.0,28158.0,0.00012]
[1680629909376,0.03571,28161.0,28158.0,0.4271349]
[1680629909599,0.0085,28160.0,28158.0,0.4270149]
[1680629910965,0.0355,28161.0,28158.0,0.4270149]
[1680629911210,0.0085,28161.0,28159.0,0.35940432]
[1680629911408,0.027,28160.0,28159.0,0.35940432]
[1680629911623,0.0085,28160.0,28159.0,0.35940432]
[1680629912289,0.027,28160.0,28159.0,0.35940432]
[1680629914482,0.0355,28160.0,28159.0,0.35940432]
[1680629915366,0.086889,28160.0,28159.0,0.35940432]
[1680629915592,0.0355,28160.0,28159.0,0.35940432]
[1680629915796,0.04583543,28160.0,28159.0,0.35940432]
[1680629916211,0.027,28160.0,28159.0,0.35940432]
[1680629922953,0.027,28160.0,28158.0,0.00018]
[1680629923212,0.027,28160.0,28158.0,0.34207818]
[1680629923460,0.027,28160.0,28158.0,0.34219818]
[1680629923979,0.07770344,28161.0,28158.0,0.34219818]
[1680629924317,0.027,28160.0,28158.0,0.34219818]
[1680629925240,0.027,28160.0,28158.0,0.4263911]
[1680629925499,0.02426917,28161.0,28159.0,0.40024841]
[1680629926016,0.027,28160.0,28159.0,0.40024841]
[1680629926290,0.07214808,28162.0,28159.0,0.40024841]
[1680629926564,0.0355,28161.0,28159.0,0.40024841]
[1680629926834,0.0085,28161.0,28159.0,0.40024841]
[1680629927103,0.027,28160.0,28159.0,0.40024841]
[1680629927366,0.0085,28161.0,28159.0,0.40024841]
[1680629928324,0.0355,28161.0,28159.0,0.48444133]
[1680629928545,0.027,28161.0,28160.0,0.17034]
[1680629928763,0.027,28161.0,28159.0,0.08419292]
[1680629928982,0.027,28161.0,28159.0,0.2103407]
[1680629929203,0.027,28161.0,28160.0,0.12614778]
[1680629929443,0.00021,28165.0,28160.0,0.21066275]
[1680629929669,0.027,28161.0,28160.0,0.21166226]
[1680629929887,0.08488056,28165.0,28160.0,0.63855316]
[1680629930101,0.13023234,28164.0,28160.0,0.63855316]
[1680629930320,0.027,28161.0,28160.0,0.63955316]
[1680629930998,0.13044234,28164.0,28160.0,0.63855316]
[1680629931189,0.15744234,28164.0,28160.0,0.63955316]
[1680629931432,0.15744234,28164.0,28160.0,0.63855316]
[1680629931667,0.01146239,28165.0,28160.0,0.63873316]
[1680629931879,0.027,28161.0,28160.0,0.63973316]
[1680629932134,0.01146239,28165.0,28160.0,0.63873316]
[1680629932359,0.027,28164.0,28160.0,0.63973316]
[1680629932581,0.01146239,28165.0,28161.0,0.44829599]
[1680629932800,0.01146239,28165.0,28161.0,0.53299025]
[1680629932801,0.03846239,28165.0,28161.0,0.53299025]
[1680629934061,0.01146239,28165.0,28161.0,0.53299025]
[1680629934278,0.01146239,28165.0,28161.0,0.53399025]
[1680629934501,0.03846239,28165.0,28161.0,0.53399025]
[1680629935296,0.049705,28164.0,28161.0,0.53399025]
[1680629935895,0.03846239,28165.0,28161.0,0.53399025]
[1680629936113,0.15493916,28164.0,28161.0,0.08569426]
[1680629936343,0.060103,28163.0,28161.0,0.00118]
[1680629936560,0.0085,28163.0,28161.0,0.001]
[1680629936784,0.050188,28162.0,28161.0,0.001]
[1680629937242,0.08086104,28162.0,28160.0,0.08469426]
[1680629937456,0.02217304,28162.0,28161.0,0.001]
[1680629937663,0.03067304,28162.0,28160.0,0.08469426]
[1680629937897,0.04917304,28162.0,28161.0,0.001]
[1680629938099,0.03067304,28162.0,28160.0,0.08469426]
[1680629938320,0.01349394,28161.0,28160.0,0.00018]
[1680629940070,0.04049394,28161.0,28160.0,0.00118]
[1680629940276,0.01349394,28161.0,28160.0,0.00018]
[1680629940493,0.04049394,28161.0,28160.0,0.00118]
[1680629941858,0.09485794,28161.0,28160.0,0.00118]
[1680629942042,0.09485794,28161.0,28160.0,0.00112]
[1680629942373,0.04049394,28161.0,28160.0,0.001]
[1680629942584,0.04049394,28161.0,28160.0,0.00112]
[1680629943015,0.04049394,28161.0,28160.0,0.001]
[1680629944157,0.0515083,28161.0,28160.0,0.001]
[1680629944570,0.1040383,28161.0,28160.0,0.001]
[1680629944978,0.0515083,28161.0,28160.0,0.001]
[1680629945179,0.1009853,28161.0,28160.0,0.001]
[1680629946659,0.04049394,28161.0,28160.0,0.001]
[1680629946873,0.04049394,28161.0,28160.0,0.00112]
[1680629947314,0.027,28161.0,28160.0,0.34009206]
[1680629947538,0.027,28161.0,28160.0,0.34015206]
[1680629947767,0.027,28161.0,28160.0,0.43170932]
[1680629948422,0.027,28161.0,28160.0,0.27428841]
[1680629948645,0.027,28161.0,28160.0,0.426247]
[1680629948862,0.027,28161.0,28160.0,0.54010095]
[1680629949300,0.00896408,28168.0,28160.0,0.275247]
[1680629949523,0.002,28161.0,28160.0,0.027367]
[1680629949784,0.00896408,28168.0,28160.0,0.105287]
[1680629950013,0.15086089,28168.0,28164.0,0.21128767]
[1680629950241,0.00896408,28168.0,28164.0,0.21146767]
[1680629950883,0.00896408,28168.0,28166.0,0.0188]
[1680629951782,0.02996408,28168.0,28166.0,0.0188]
[1680629951993,0.00896408,28168.0,28166.0,0.0188]
[1680629952212,0.00896408,28168.0,28166.0,0.0198]
[1680629952430,0.03596408,28168.0,28166.0,0.0198]
[1680629952659,0.03596408,28168.0,28166.0,0.01974]
[1680629953079,0.0120656,28167.0,28166.0,0.01974]
[1680629953773,0.07632857,28167.0,28166.0,0.01974]
[1680629953993,0.02536857,28167.0,28166.0,0.01974]
[1680629954213,0.02536857,28167.0,28166.0,0.01874]
[1680629954427,0.02536857,28167.0,28166.0,0.01974]
[1680629954639,0.0475656,28167.0,28166.0,0.01974]
[1680629954856,0.1014386,28167.0,28166.0,0.01974]
[1680629955080,0.0475656,28167.0,28166.0,0.01974]
[1680629955740,0.0993996,28167.0,28166.0,0.01974]
[1680629956177,0.0475656,28167.0,28166.0,0.01974]
[1680629956680,0.05321857,28167.0,28166.0,0.01974]
[1680629957332,0.0475656,28167.0,28166.0,0.001]
[1680629957549,0.0355,28167.0,28166.0,0.001]
[1680629957965,0.027,28167.0,28166.0,0.40158125]
[1680629959054,0.026924,28167.0,28166.0,0.40158125]
[1680629959868,0.026924,28167.0,28166.0,0.40170125]
[1680629960504,0.026924,28167.0,28166.0,0.40158125]
[1680629961751,0.026924,28167.0,28166.0,0.001]
[1680629961977,0.18599184,28167.0,28166.0,0.001]
[1680629962194,0.11434775,28167.0,28166.0,0.001]
[1680629962432,0.12284775,28167.0,28166.0,0.001]
[1680629963367,0.12305775,28167.0,28166.0,0.001]
[1680629967110,0.088847,28167.0,28166.0,0.001]
[1680629967336,0.088637,28167.0,28166.0,0.001]
[1680629967567,0.088847,28167.0,28166.0,0.001]
[1680629968013,0.026924,28167.0,28166.0,0.35271879]
[1680629971357,0.026924,28167.0,28166.0,0.001]
[1680629971611,0.04352247,28167.0,28166.0,0.001]
[1680629972489,0.05202247,28167.0,28166.0,0.001]
[1680629972699,0.10271647,28167.0,28166.0,0.001]
[1680629976210,0.07706691,28167.0,28166.0,0.001]
[1680629976937,0.07341431,28167.0,28166.0,0.001]
[1680629978963,0.02272031,28167.0,28166.0,0.001]
[1680629979858,0.02144587,28167.0,28164.0,0.45402765]
[1680629980078,0.03444587,28167.0,28166.0,0.002]
[1680629980532,0.02144587,28167.0,28164.0,0.45408765]
[1680629980751,0.05247228,28167.0,28166.0,0.002]
[1680629981379,0.03947228,28167.0,28164.0,0.45408765]
[1680629981605,0.0085,28166.0,28164.0,0.45408765]
[1680629981877,0.0035,28166.0,28164.0,0.45402765]
[1680629982067,0.01802641,28167.0,28164.0,0.45390765]
[1680629982322,0.03102641,28167.0,28164.0,0.45602765]
[1680629982544,0.01802641,28167.0,28164.0,0.45390765]
[1680629982765,0.15902823,28169.0,28164.0,0.45390765]
[1680629982766,0.013,28166.0,28164.0,0.45590765]
[1680629983215,0.01118517,28168.0,28164.0,0.45390765]
[1680629983431,0.013,28167.0,28164.0,0.45590765]
[1680629983647,0.0226575,28167.0,28164.0,0.45590765]
[1680629984089,0.0085,28166.0,28164.0,0.45390765]
[1680629984279,0.0215,28166.0,28164.0,0.45602765]
[1680629984501,0.0215,28166.0,28164.0,0.45590765]
[1680629985143,0.0085,28166.0,28164.0,0.45390765]
[1680629986032,0.0215,28166.0,28164.0,0.45590765]
[1680629987389,0.0215,28166.0,28164.0,0.45602765]
[1680629987619,0.03346551,28166.0,28164.0,0.45602765]
[1680629988752,0.03346551,28166.0,28164.0,0.45590765]
[1680629990196,0.03346551,28166.0,28164.0,0.45602765]
[1680629990398,0.0215,28166.0,28164.0,0.45590765]
[1680629992725,0.0215,28166.0,28164.0,0.45590765]
[1680629994089,0.03269427,28166.0,28164.0,0.45590765]
[1680629995098,0.0215,28166.0,28164.0,0.45590765]
[1680629995734,0.0215,28166.0,28164.0,0.002]
[1680629996195,0.0312841,28166.0,28164.0,0.002]
[1680629997846,0.05173,28165.0,28164.0,0.002]
[1680629998036,0.06853141,28165.0,28164.0,0.002]
[1680629999582,0.06853141,28165.0,28163.0,0.4292271]
[1680629999796,0.05384,28164.0,28163.0,0.4292271]
[1680630000687,0.013,28164.0,28163.0,0.4312271]
[1680630004771,0.013,28164.0,28163.0,0.08651507]
[1680630004972,0.013,28164.0,28163.0,0.62594999]
[1680630005179,0.013,28164.0,28163.0,0.58770021]
[1680630005375,0.013,28164.0,28163.0,0.1430386]
[1680630005610,0.013,28164.0,28163.0,0.1427836]
[1680630005816,0.013,28164.0,28163.0,0.55169957]
[1680630006422,0.01999189,28169.0,28163.0,0.54969957]
[1680630006625,0.01978189,28169.0,28164.0,0.15645315]
[1680630007269,0.01978189,28169.0,28164.0,0.23195315]
[1680630007458,0.01978189,28169.0,28164.0,0.16008018]
[1680630007742,0.01978189,28169.0,28165.0,0.08458018]
[1680630007743,0.00881823,28169.0,28165.0,0.08458018]
[1680630007948,0.00881823,28169.0,28168.0,0.0757]
[1680630008160,0.00021,28172.0,28168.0,0.0757]
[1680630008367,0.011,28169.0,28168.0,0.0757]
[1680630008567,0.00021,28172.0,28168.0,0.0757]
[1680630008771,0.00021,28172.0,28169.0,0.46682353]
[1680630008976,0.00021,28172.0,28169.0,0.5295339]
[1680630009091,0.01262175,28173.0,28169.0,0.5295339]
[1680630009299,0.00021,28173.0,28169.0,0.5295339]
[1680630009707,0.00021,28173.0,28169.0,0.46882353]
[1680630009926,0.011,28172.0,28169.0,0.46882353]
[1680630010131,0.00021,28173.0,28169.0,0.46682353]
[1680630010333,0.00021,28173.0,28169.0,0.54252353]
[1680630010539,0.01161627,28174.0,28169.0,0.54252353]
[1680630010742,0.01161627,28174.0,28169.0,0.62549316]
[1680630010971,0.011,28173.0,28169.0,0.62749316]
[1680630011188,0.00021,28173.0,28169.0,0.62549316]
[1680630011390,0.02261627,28174.0,28170.0,0.41529492]
[1680630011841,0.01161627,28174.0,28170.0,0.41529492]
[1680630012061,0.011,28173.0,28170.0,0.48114939]
[1680630012306,0.00021,28173.0,28170.0,0.48114939]
[1680630012532,0.00021,28173.0,28170.0,0.48314939]
[1680630012739,0.00021,28173.0,28170.0,0.41529492]
[1680630012960,0.01121,28173.0,28170.0,0.41629492]
[1680630013828,0.00021,28173.0,28170.0,0.41529492]
[1680630014045,0.01121,28173.0,28170.0,0.41729492]
[1680630014258,0.00021,28173.0,28170.0,0.41529492]
[1680630014476,0.01121,28173.0,28170.0,0.41729492]
[1680630015340,0.01121,28173.0,28170.0,0.002]
[1680630015560,0.06399818,28172.0,28170.0,0.002]
[1680630015788,0.048203,28171.0,28170.0,0.002]
[1680630016710,0.05953598,28171.0,28168.0,0.40654074]
[1680630016935,0.01133298,28171.0,28170.0,0.002]
[1680630017149,0.01133298,28171.0,28168.0,0.40654074]
[1680630017150,0.06069798,28171.0,28168.0,0.40654074]
[1680630017370,0.02233298,28171.0,28170.0,0.002]
[1680630017621,0.06319598,28171.0,28168.0,0.40654074]
[1680630017844,0.048299,28170.0,28168.0,0.40754074]
[1680630018071,0.048299,28170.0,28168.0,0.40654074]
[1680630018296,0.02233298,28171.0,28169.0,0.44617456]
[1680630018526,0.00021,28172.0,28169.0,0.44617456]
[1680630018759,0.00021,28172.0,28170.0,0.40200367]
[1680630018989,0.01205555,28174.0,28170.0,0.40200367]
[1680630018990,0.00021,28173.0,28170.0,0.40200367]
[1680630019210,0.00954894,28173.0,28170.0,0.40200367]
[1680630019922,0.051316,28172.0,28170.0,0.40200367]
[1680630020148,0.02054894,28173.0,28170.0,0.40400367]
[1680630020678,0.050751,28172.0,28170.0,0.40400367]
[1680630020905,0.02054894,28173.0,28170.0,0.40400367]
[1680630021130,0.054191,28172.0,28170.0,0.40400367]
[1680630021584,0.065191,28172.0,28170.0,0.40600367]
[1680630021807,0.03105305,28172.0,28170.0,0.40600367]
[1680630022039,0.050964,28171.0,28170.0,0.00412]
[1680630022269,0.050964,28171.0,28170.0,0.004]
[1680630022502,0.02005305,28172.0,28168.0,0.41878314]
[1680630022975,0.02005305,28172.0,28168.0,0.41866314]
[1680630023430,0.02005305,28172.0,28169.0,0.35712847]
[1680630023661,0.07134861,28171.0,28170.0,0.002]
[1680630023885,0.00011921,28170.0,28169.0,0.35712847]
[1680630025887,0.01111921,28170.0,28169.0,0.35812847]
[1680630026992,0.01111921,28170.0,28169.0,0.35824847]
[1680630028141,0.01111921,28170.0,28169.0,0.35812847]
[1680630028949,0.01111921,28170.0,28169.0,0.35801791]
[1680630030171,0.01111921,28170.0,28169.0,0.35813791]
[1680630030763,0.01111921,28170.0,28169.0,0.35801791]
[1680630031478,0.01011921,28170.0,28169.0,0.35801791]
[1680630032333,0.0297396,28170.0,28169.0,0.35801791]
[1680630036481,0.0297396,28170.0,28169.0,0.001]
[1680630036699,0.0297396,28170.0,28169.0,0.35400481]
[1680630037354,0.0297396,28170.0,28169.0,0.47499321]
[1680630037565,0.0297396,28170.0,28169.0,0.43957473]
[1680630038442,0.0297396,28170.0,28169.0,0.43969473]
[1680630038874,0.0297396,28170.0,28169.0,0.43957473]
[1680630043322,0.03673661,28170.0,28169.0,0.43957473]
[1680630044179,0.04522257,28170.0,28169.0,0.43957473]
[1680630045262,0.04522257,28170.0,28169.0,0.0848]
[1680630045480,0.04522257,28170.0,28169.0,0.23054167]
[1680630045690,0.04522257,28170.0,28169.0,0.55088167]
[1680630046151,0.04522257,28170.0,28169.0,0.40088167]
[1680630046374,0.04522257,28170.0,28169.0,0.45745409]
[1680630046597,0.04522257,28170.0,28169.0,0.64965163]
[1680630046853,0.04522257,28170.0,28169.0,0.64871163]
[1680630046854,0.03510336,28170.0,28169.0,0.64871163]
[1680630047062,0.03510336,28170.0,28169.0,0.64865163]
[1680630047294,0.03209318,28178.0,28169.0,0.8599993]
[1680630047498,0.18440086,28178.0,28172.0,0.084]
[1680630047721,0.01253128,28177.0,28172.0,0.084]
[1680630048170,0.01253128,28177.0,28173.0,0.33931702]
[1680630049426,0.01253128,28177.0,28173.0,0.33943702]
[1680630049650,0.01253128,28177.0,28173.0,0.33931702]
[1680630049864,0.02153128,28177.0,28173.0,0.34031702]
[1680630050484,0.02153128,28177.0,28173.0,0.37436672]
[1680630050716,0.02153128,28177.0,28174.0,0.35574138]
[1680630051211,0.052125,28176.0,28174.0,0.35574138]
[1680630052063,0.02153128,28177.0,28174.0,0.35574138]
[1680630052293,0.01253128,28177.0,28174.0,0.35574138]
[1680630052500,0.02153128,28177.0,28174.0,0.35574138]
[1680630052705,0.01253128,28177.0,28174.0,0.35574138]
[1680630053048,0.049688,28176.0,28174.0,0.35574138]
[1680630053371,0.049688,28176.0,28174.0,0.35774138]
[1680630054179,0.049688,28176.0,28174.0,0.35574138]
[1680630055154,0.009,28176.0,28174.0,0.35774138]
[1680630058230,0.009,28176.0,28175.0,0.37434982]
[1680630058889,0.01253128,28177.0,28175.0,0.37234982]
[1680630059110,0.02153128,28177.0,28175.0,0.37434982]
[1680630059335,0.01253128,28177.0,28175.0,0.37234982]
[1680630059566,0.009,28176.0,28175.0,0.37434982]
[1680630059784,0.0228084,28177.0,28173.0,0.40181822]
[1680630060014,0.0228084,28177.0,28173.0,0.40163822]
[1680630060473,0.06469764,28176.0,28173.0,0.40163822]
[1680630060706,0.01027712,28177.0,28174.0,0.35186807]
[1680630061144,0.04190153,28178.0,28174.0,0.35186807]
[1680630061374,0.009,28177.0,28174.0,0.35186807]
[1680630061986,0.04190153,28178.0,28174.0,0.35186807]
[1680630062220,0.009,28177.0,28174.0,0.35386807]
[1680630063313,0.009,28177.0,28174.0,0.35398807]
[1680630063558,0.009,28177.0,28175.0,0.00878]
[1680630063770,0.009,28177.0,28174.0,0.35386807]
[1680630064007,0.01988383,28177.0,28175.0,0.37371786]
[1680630064227,0.009,28177.0,28175.0,0.36514686]
[1680630064458,0.04190153,28178.0,28176.0,0.008626]
[1680630064676,0.009,28177.0,28175.0,0.36714686]
[1680630065520,0.009,28177.0,28175.0,0.002]
[1680630065741,0.009,28177.0,28176.0,0.0833]
[1680630065961,0.009,28177.0,28176.0,0.267776]
[1680630066197,0.009,28177.0,28176.0,0.296168]
[1680630066664,0.02299,28178.0,28176.0,0.296168]
[1680630066894,0.02299,28178.0,28177.0,0.234]
[1680630067128,0.01409,28178.0,28177.0,1.06681759]
[1680630067838,0.01409,28178.0,28177.0,1.15129693]
[1680630068066,0.01509,28178.0,28177.0,1.09481759]
[1680630068535,0.01509,28178.0,28177.0,1.17929693]
[1680630068763,0.01509,28178.0,28177.0,1.17923693]
[1680630069560,0.01409,28178.0,28177.0,1.15123693]
[1680630069760,0.01509,28178.0,28177.0,1.17923693]
[1680630070541,0.01509,28178.0,28177.0,1.17935693]
[1680630070975,0.01509,28178.0,28177.0,1.22165661]
[1680630071184,0.01509,28178.0,28177.0,1.17912824]
[1680630071824,0.01509,28178.0,28177.0,1.09493759]
[1680630072039,0.01509,28178.0,28177.0,1.17569325]
[1680630072265,0.01509,28178.0,28177.0,1.24215325]
[1680630072907,0.01509,28178.0,28177.0,1.17232122]
[1680630073796,0.01509,28178.0,28177.0,1.54612122]
[1680630074490,0.01509,28178.0,28177.0,1.09156556]
[1680630074713,0.01509,28178.0,28177.0,1.49098796]
[1680630075150,0.01509,28178.0,28177.0,0.363055]
[1680630075376,0.01509,28178.0,28177.0,0.91745753]
[1680630075601,0.01509,28178.0,28177.0,0.46481607]
[1680630075834,0.00012,28190.0,28184.0,0.525112]
[1680630076076,0.02299,28194.0,28189.0,0.72851056]
[1680630076310,0.02299,28194.0,28191.0,0.3738]
[1680630076542,0.02299,28194.0,28193.0,0.3738]
[1680630076543,0.016762,28194.0,28193.0,0.3738]
[1680630076772,0.028399,28199.0,28195.0,0.3738]
[1680630077000,0.028399,28199.0,28198.0,0.5245]
[1680630077230,0.028399,28199.0,28198.0,0.89339556]
[1680630077463,0.028399,28199.0,28198.0,1.21619032]
[1680630078244,0.028399,28199.0,28198.0,1.91619032]
[1680630078718,0.028399,28199.0,28198.0,0.405585]
[1680630079210,0.028399,28199.0,28198.0,0.433585]
[1680630079442,0.028399,28199.0,28198.0,0.69476556]
[1680630079689,0.028399,28199.0,28198.0,0.64179556]
[1680630079938,0.028399,28199.0,28198.0,0.98759556]
[1680630080169,0.028399,28199.0,28198.0,1.20598662]
[1680630080635,0.04877798,28206.0,28198.0,1.20598662]
[1680630080866,0.04877798,28206.0,28201.0,0.075]
[1680630081349,0.04877798,28206.0,28201.0,0.2451]
[1680630081579,0.00021,28206.0,28201.0,0.259283]
[1680630081825,0.00021,28206.0,28202.0,0.0334483]
[1680630082051,0.00021,28206.0,28203.0,0.014182]
[1680630082282,0.00021,28207.0,28203.0,0.39820443]
[1680630082512,0.00021,28207.0,28204.0,0.05816527]
[1680630083911,0.00021,28207.0,28205.0,0.72851056]
[1680630084148,0.0015,28211.0,28206.0,0.817028]
[1680630084149,0.00021,28209.0,28206.0,0.817028]
[1680630084401,0.0015,28211.0,28208.0,0.58284]
[1680630084635,0.0015,28211.0,28210.0,0.4576]
[1680630084860,0.0015,28211.0,28210.0,0.82648956]
[1680630085100,0.0015,28211.0,28210.0,0.641819]
[1680630085569,0.0015,28211.0,28210.0,0.99652956]
[1680630085802,0.0015,28211.0,28210.0,1.15035842]
[1680630087157,0.0015,28211.0,28210.0,1.59729677]
[1680630087385,0.0015,28211.0,28210.0,0.72877835]
[1680630087610,0.0015,28211.0,28210.0,0.64497835]
[1680630090592,0.0015,28211.0,28210.0,0.19804]
[1680630090826,0.05450619,28211.0,28210.0,0.028]
[1680630091052,0.00171,28211.0,28210.0,0.035985]
[1680630091283,0.00171,28211.0,28210.0,0.036474]
[1680630091761,0.00171,28211.0,28210.0,0.008474]
[1680630091983,0.00171,28211.0,28210.0,0.030474]
[1680630092875,0.00171,28211.0,28210.0,0.008474]
[1680630093098,0.00171,28211.0,28210.0,0.023474]
[1680630093789,0.00171,28211.0,28210.0,0.05946246]
[1680630094458,0.02351437,28211.0,28210.0,0.023474]
[1680630095857,0.06610723,28211.0,28210.0,0.023474]
[1680630096082,0.06610723,28211.0,28210.0,0.015]
[1680630096523,0.07867882,28211.0,28210.0,0.015]
[1680630097459,0.07717882,28211.0,28210.0,0.015]
[1680630098139,0.03458596,28211.0,28210.0,0.015]
[1680630098373,0.03458596,28211.0,28210.0,0.023821]
[1680630099051,0.03458596,28211.0,28210.0,0.35866452]
[1680630099283,0.03458596,28211.0,28210.0,0.39453097]
[1680630101122,0.03458596,28211.0,28210.0,0.05086645]
[1680630101352,0.14217149,28211.0,28210.0,0.015]
[1680630101574,0.15547149,28211.0,28210.0,0.015]
[1680630102243,0.15547149,28211.0,28207.0,0.40403935]
[1680630102462,0.0048,28209.0,28207.0,0.40403935]
[1680630102686,0.00501,28209.0,28204.0,0.00012]
[1680630102913,0.00501,28209.0,28204.0,0.34185797]
[1680630102914,0.04121521,28208.0,28204.0,0.34185797]
[1680630103163,0.0048,28207.0,28201.0,0.00018]
[1680630103373,0.19134181,28206.0,28203.0,0.46808208]
[1680630103599,0.14669681,28207.0,28203.0,0.46826208]
[1680630103833,0.0048,28207.0,28203.0,0.46808208]
[1680630104279,0.0048,28207.0,28203.0,0.51490829]
[1680630104736,0.00473574,28207.0,28204.0,0.008]
[1680630105001,0.00473574,28207.0,28203.0,0.51502829]
[1680630105002,0.00473574,28207.0,28203.0,0.46820208]
[1680630105225,0.00473574,28207.0,28203.0,0.01512]
[1680630105452,0.00473574,28207.0,28201.0,0.1701]
[1680630105643,0.14663255,28207.0,28204.0,0.35641545]
[1680630105896,0.00473574,28207.0,28204.0,0.36459545]
[1680630106111,0.00473574,28207.0,28204.0,0.35641545]
[1680630106782,0.04577145,28207.0,28204.0,0.35641545]
[1680630107244,0.0934051,28206.0,28203.0,0.00018]
[1680630107479,0.0934051,28206.0,28202.0,0.017022]
[1680630107480,0.0459291,28206.0,28202.0,0.017022]
[1680630107720,0.0459291,28206.0,28202.0,0.38308767]
[1680630107947,0.0459291,28206.0,28204.0,0.008]
[1680630108172,0.0459291,28206.0,28202.0,0.38326767]
[1680630108390,0.0459291,28206.0,28202.0,0.40526767]
[1680630108615,0.0459291,28206.0,28202.0,0.38326767]
[1680630108866,0.0048,28205.0,28204.0,0.008]
[1680630109092,0.0048,28205.0,28202.0,0.38326767]
[1680630109339,0.0048,28205.0,28202.0,0.40526767]
[1680630109606,0.0048,28205.0,28203.0,0.40023823]
[1680630109873,0.0048,28205.0,28204.0,0.002]
[1680630110414,0.0459291,28206.0,28204.0,0.002]
[1680630110957,0.0459291,28206.0,28203.0,0.40035823]
[1680630111209,0.0459291,28206.0,28203.0,0.00012]
[1680630111477,0.05174334,28206.0,28202.0,0.1701]
[1680630111743,0.05174334,28206.0,28202.0,0.57558822]
[1680630112011,0.05174334,28206.0,28202.0,0.57546822]
[1680630112298,0.04367043,28206.0,28203.0,0.46743249]
[1680630112560,0.04367043,28206.0,28204.0,0.44424298]
[1680630113360,0.0038,28207.0,28204.0,0.44424298]
[1680630114373,0.03342726,28206.0,28204.0,0.44424298]
[1680630115716,0.03642726,28206.0,28204.0,0.44424298]
[1680630115952,0.03642726,28206.0,28205.0,0.008471]
[1680630116185,0.03642726,28206.0,28204.0,0.44424298]
[1680630120673,0.00021,28210.0,28205.0,0.93713386]
[1680630120919,0.29106006,28214.0,28207.0,0.54148761]
[1680630120920,0.29127006,28214.0,28207.0,0.54148761]
[1680630121157,0.29127006,28214.0,28213.0,0.08406327]
[1680630121627,0.29127006,28214.0,28213.0,0.21015817]
[1680630123252,0.29127006,28214.0,28213.0,0.21017571]
[1680630123489,0.29127006,28214.0,28212.0,0.21035571]
[1680630123715,0.29106006,28214.0,28213.0,0.09241081]
[1680630123938,0.29106006,28214.0,28213.0,0.51927953]
[1680630124132,0.29127006,28214.0,28213.0,0.51927953]
[1680630124433,0.29127006,28214.0,28213.0,0.43519872]
[1680630124882,0.29127006,28214.0,28213.0,0.42686872]
[1680630125122,0.29127006,28214.0,28212.0,0.00018]
[1680630125123,0.050503,28213.0,28212.0,0.00018]
[1680630125383,0.050503,28213.0,28211.0,0.38366076]
[1680630125384,0.054303,28213.0,28211.0,0.38366076]
[1680630125613,0.0038,28213.0,28212.0,0.4678943]
[1680630125846,0.0038,28213.0,28212.0,0.4680143]
[1680630126262,0.0038,28213.0,28212.0,0.00012]
[1680630126487,0.0038,28213.0,28211.0,0.46512324]
[1680630126705,0.0038,28213.0,28211.0,0.45624324]
[1680630126931,0.0038,28213.0,28212.0,0.001]
[1680630127150,0.15289233,28213.0,28212.0,0.001]
[1680630127374,0.15648717,28213.0,28212.0,0.001]
[1680630127606,0.30648717,28213.0,28212.0,0.001]
[1680630127815,0.23649049,28213.0,28212.0,0.001]
[1680630128283,0.053548,28212.0,28208.0,0.21035571]
[1680630128514,0.0038,28210.0,28208.0,0.21017571]
[1680630128730,0.0038,28209.0,28208.0,0.21017571]
[1680630128951,0.02160365,28209.0,28208.0,0.08408081]
[1680630129180,0.02160365,28209.0,28207.0,0.08420081]
[1680630129424,0.02138853,28209.0,28208.0,0.002]
[1680630129673,0.02518853,28209.0,28207.0,0.08408081]
[1680630129896,0.0038,28208.0,28207.0,0.08408081]
[1680630130347,0.0038,28208.0,28207.0,0.46954651]
[1680630130568,0.055654,28208.0,28207.0,0.3854657]
[1680630130819,0.0038,28208.0,28207.0,0.08408081]
[1680630131056,0.00358488,28209.0,28206.0,0.08408081]
[1680630131516,0.00358488,28209.0,28207.0,0.001]
[1680630131740,0.00358488,28209.0,28206.0,0.08408081]
[1680630131959,0.00358488,28209.0,28206.0,0.08508081]
[1680630132231,0.00358488,28209.0,28206.0,0.08408081]
[1680630132458,0.0085,28211.0,28207.0,0.28606537]
[1680630132700,0.00021,28212.0,28208.0,0.45289403]
[1680630132701,0.0122601,28212.0,28208.0,0.45289403]
[1680630132926,0.03924791,28211.0,28208.0,0.45289403]
[1680630133152,0.0085,28210.0,28208.0,0.45289403]
[1680630133646,0.0085,28210.0,28209.0,0.74268956]
[1680630133863,0.00021,28213.0,28209.0,1.04455773]
[1680630134122,0.29127006,28214.0,28212.0,0.08412138]
[1680630134333,0.29127006,28214.0,28212.0,0.09829938]
[1680630134555,0.29099304,28214.0,28212.0,0.1575495]
[1680630134782,0.29099304,28214.0,28213.0,0.184217]
[1680630135005,0.29099304,28214.0,28213.0,0.184397]
[1680630136590,0.29099304,28214.0,28213.0,0.76461167]
[1680630137252,0.29099304,28214.0,28213.0,0.351397]
[1680630137476,0.29099304,28214.0,28213.0,0.87947159]
[1680630137749,0.29099304,28214.0,28213.0,0.86447159]
[1680630138043,0.29099304,28214.0,28213.0,0.88647159]
[1680630139624,0.29099304,28214.0,28213.0,0.73447159]
[1680630140139,0.29099304,28214.0,28213.0,0.71247159]
[1680630140141,0.29099304,28214.0,28213.0,0.74047159]
[1680630140405,0.29099304,28214.0,28213.0,0.72029459]
[1680630140692,0.29099304,28214.0,28213.0,0.62494274]